[Event "Titled Tuesday Blitz April 26 Late 2022"]
[White "Coelho, Ramyres Santana"]
[Black "Mickiewicz, Piotr"]
[WhiteFideId "2120690"]
[BlackFideId "1114891"]
[WhiteElo "1888"]
[BlackElo "2266"]
[Result "1-0"]
[Round "02"]
[TimeControl "180+1"]
[Date "2022.04.26"]
[WhiteClock "0:00:03"]
[BlackClock "0:00:05"]

1. e4 {[%clk 0:03:00]}  c5 {[%clk 0:02:57]} 2. Nf3 {[%clk 0:03:00]}  e6 {[%clk 0:02:57]} 3. d4 {[%clk 0:03:00]}  cxd4 {[%clk 0:02:58]} 4. c3 {[%clk 0:03:00]}  Nf6 {[%clk 0:02:59]} 5. e5 {[%clk 0:03:00]}  Nd5 {[%clk 0:02:59]} 6. cxd4 {[%clk 0:02:57]}  d6 {[%clk 0:02:59]} 7. Nc3 {[%clk 0:02:56]}  Nxc3 {[%clk 0:02:58]} 8. bxc3 {[%clk 0:02:55]}  Qc7 {[%clk 0:02:59]} 9. Bd2 {[%clk 0:02:54]}  Nd7 {[%clk 0:02:56]} 10. Bb5 {[%clk 0:02:41]}  a6 {[%clk 0:02:54]} 11. Bxd7+ {[%clk 0:02:34]}  Bxd7 {[%clk 0:02:53]} 12. O-O {[%clk 0:02:26]}  Bb5 {[%clk 0:02:52]} 13. Re1 {[%clk 0:02:21]}  d5 {[%clk 0:02:35]} 14. a4 {[%clk 0:02:18]}  Bd3 {[%clk 0:02:31]} 15. Re3 {[%clk 0:02:12]}  Bg6 {[%clk 0:02:29]} 16. a5 {[%clk 0:02:09]}  Rc8 {[%clk 0:02:27]} 17. Qa4+ {[%clk 0:02:09]}  Qc6 {[%clk 0:02:26]} 18. Qb3 {[%clk 0:02:07]}  Be7 {[%clk 0:02:23]} 19. h4 {[%clk 0:02:04]}  h5 {[%clk 0:02:07]} 20. Ra2 {[%clk 0:01:55]}  Rc7 {[%clk 0:01:43]} 21. Rb2 {[%clk 0:01:54]}  Kd7 {[%clk 0:01:37]} 22. Ne1 {[%clk 0:01:45]}  Bxh4 {[%clk 0:01:34]} 23. Nd3 {[%clk 0:01:42]}  Be7 {[%clk 0:01:32]} 24. Nb4 {[%clk 0:01:36]}  Bxb4 {[%clk 0:01:30]} 25. Qxb4 {[%clk 0:01:36]}  Rhc8 {[%clk 0:01:24]} 26. Rg3 {[%clk 0:01:21]}  Ke8 {[%clk 0:01:21]} 27. Qa3 {[%clk 0:01:03]}  Qd7 {[%clk 0:01:19]} 28. Rb6 {[%clk 0:01:01]}  Rc6 {[%clk 0:01:18]} 29. Rb3 {[%clk 0:00:57]}  Qe7 {[%clk 0:01:17]} 30. Qb2 {[%clk 0:00:52]}  R8c7 {[%clk 0:01:16]} 31. Bg5 {[%clk 0:00:51]}  Qd7 {[%clk 0:01:15]} 32. Rb4 {[%clk 0:00:43]}  Rc4 {[%clk 0:01:09]} 33. Rb6 {[%clk 0:00:42]}  Ra4 {[%clk 0:01:02]} 34. Rd6 {[%clk 0:00:27]}  Qc8 {[%clk 0:01:01]} 35. Qb6 {[%clk 0:00:17]}  Rd7 {[%clk 0:00:54]} 36. Rf3 {[%clk 0:00:08]}  Bf5 {[%clk 0:00:32]} 37. Rxf5 {[%clk 0:00:06]}  exf5 {[%clk 0:00:33]} 38. e6 {[%clk 0:00:03]}  fxe6 {[%clk 0:00:32]} 39. Rxe6+ {[%clk 0:00:03]}  Kf7 {[%clk 0:00:32]} 40. Re5 {[%clk 0:00:02]}  Qc6 {[%clk 0:00:17]} 41. Qb3 {[%clk 0:00:02]}  Ra1+ {[%clk 0:00:15]} 42. Kh2 {[%clk 0:00:01]}  Rxa5 {[%clk 0:00:15]} 43. Rxf5+ {[%clk 0:00:02]}  Kg6 {[%clk 0:00:14]} 44. Qc2 {[%clk 0:00:03]}  Qxc3 {[%clk 0:00:05]} 45. Rf6+ {[%clk 0:00:02]}  Kxg5 {[%clk 0:00:04]} 46. Qg6+ {[%clk 0:00:03]}  Kh4 {[%clk 0:00:05]} 47. g3+ {[%clk 0:00:03]}  Qxg3+ {[%clk 0:00:05]} 48. Qxg3# {[%clk 0:00:03]} 1-0


[Site "https://www.chess.com"]

[Event "Titled Tuesday Blitz April 26 Late 2022"]
[White "Czopor, Maciej"]
[Black "Dubov, Daniil"]
[WhiteFideId "21805431"]
[BlackFideId "24126055"]
[WhiteElo "1999"]
[BlackElo "2791"]
[Result "0-1"]
[Round "02"]
[TimeControl "180+1"]
[Date "2022.04.26"]
[WhiteClock "0:00:01"]
[BlackClock "0:00:58"]

1. d4 {[%clk 0:03:00]}  d5 {[%clk 0:02:59]} 2. Nf3 {[%clk 0:03:00]}  Nf6 {[%clk 0:02:58]} 3. Bf4 {[%clk 0:02:59]}  c5 {[%clk 0:02:57]} 4. e3 {[%clk 0:02:59]}  Nc6 {[%clk 0:02:57]} 5. Nbd2 {[%clk 0:02:59]}  Nh5 {[%clk 0:02:57]} 6. Bg5 {[%clk 0:02:49]}  h6 {[%clk 0:02:55]} 7. Bh4 {[%clk 0:02:49]}  g5 {[%clk 0:02:54]} 8. Ne5 {[%clk 0:02:46]}  Nxe5 {[%clk 0:02:40]} 9. dxe5 {[%clk 0:02:30]}  Ng7 {[%clk 0:02:38]} 10. Bg3 {[%clk 0:02:31]}  Nf5 {[%clk 0:02:34]} 11. Bb5+ {[%clk 0:02:04]}  Bd7 {[%clk 0:02:33]} 12. Bxd7+ {[%clk 0:02:04]}  Qxd7 {[%clk 0:02:34]} 13. e4 {[%clk 0:02:03]}  dxe4 {[%clk 0:02:21]} 14. Nxe4 {[%clk 0:02:04]}  Qc6 {[%clk 0:02:21]} 15. Qf3 {[%clk 0:01:26]}  Nd4 {[%clk 0:02:19]} 16. Qd3 {[%clk 0:01:27]}  O-O-O {[%clk 0:02:09]} 17. O-O-O {[%clk 0:01:27]}  Bg7 {[%clk 0:02:07]} 18. Rhe1 {[%clk 0:01:18]}  Rd7 {[%clk 0:01:55]} 19. Qc4 {[%clk 0:00:50]}  Rhd8 {[%clk 0:01:46]} 20. c3 {[%clk 0:00:33]}  Ne6 {[%clk 0:01:37]} 21. Rxd7 {[%clk 0:00:32]}  Rxd7 {[%clk 0:01:36]} 22. Rd1 {[%clk 0:00:29]}  b5 {[%clk 0:01:32]} 23. Qe2 {[%clk 0:00:27]}  Rxd1+ {[%clk 0:01:31]} 24. Kxd1 {[%clk 0:00:28]}  Qd5+ {[%clk 0:01:30]} 25. Nd2 {[%clk 0:00:20]}  c4 {[%clk 0:01:27]} 26. Qe4 {[%clk 0:00:17]}  Qxe4 {[%clk 0:01:27]} 27. Nxe4 {[%clk 0:00:18]}  Kd7 {[%clk 0:01:27]} 28. b3 {[%clk 0:00:11]}  Kc6 {[%clk 0:01:25]} 29. Ke2 {[%clk 0:00:07]}  Kd5 {[%clk 0:01:23]} 30. Nd2 {[%clk 0:00:06]}  Nc5 {[%clk 0:01:14]} 31. Ke3 {[%clk 0:00:02]}  Nd3 {[%clk 0:01:05]} 32. f3 {[%clk 0:00:01]}  Nxe5 {[%clk 0:01:00]} 33. Ne4 {[%clk 0:00:01]}  f5 {[%clk 0:00:58]} 0-1


[Site "https://www.chess.com"]

[Event "Titled Tuesday Blitz April 26 Late 2022"]
[White "De Souza, Cristiano Gomes"]
[Black "Manukyan, Sargis A."]
[WhiteFideId "2151758"]
[BlackFideId "13303970"]
[WhiteElo "2068"]
[BlackElo "2187"]
[Result "1-0"]
[Round "02"]
[TimeControl "180+1"]
[Date "2022.04.26"]
[WhiteClock "0:02:33"]
[BlackClock "0:01:14"]

1. d4 {[%clk 0:02:59]}  Nf6 {[%clk 0:02:53]} 2. c4 {[%clk 0:02:58]}  g6 {[%clk 0:02:54]} 3. Nf3 {[%clk 0:02:58]}  Bg7 {[%clk 0:02:54]} 4. Nc3 {[%clk 0:02:59]}  O-O {[%clk 0:02:53]} 5. e4 {[%clk 0:02:58]}  d6 {[%clk 0:02:50]} 6. Be2 {[%clk 0:02:59]}  Nbd7 {[%clk 0:02:50]} 7. O-O {[%clk 0:02:59]}  c6 {[%clk 0:02:37]} 8. h3 {[%clk 0:02:59]}  Qc7 {[%clk 0:02:36]} 9. Be3 {[%clk 0:02:57]}  e5 {[%clk 0:02:36]} 10. Rc1 {[%clk 0:02:57]}  Rd8 {[%clk 0:02:29]} 11. a3 {[%clk 0:02:56]}  c5 {[%clk 0:02:08]} 12. dxe5 {[%clk 0:02:54]}  Nxe5 {[%clk 0:01:57]} 13. Nxe5 {[%clk 0:02:51]}  dxe5 {[%clk 0:01:58]} 14. Nd5 {[%clk 0:02:50]}  Nxd5 {[%clk 0:01:58]} 15. cxd5 {[%clk 0:02:51]}  b6 {[%clk 0:01:58]} 16. b4 {[%clk 0:02:51]}  Bf8 {[%clk 0:01:58]} 17. bxc5 {[%clk 0:02:51]}  bxc5 {[%clk 0:01:58]} 18. Rc3 {[%clk 0:02:41]}  Qb6 {[%clk 0:01:56]} 19. Qc1 {[%clk 0:02:37]}  Qa5 {[%clk 0:01:26]} 20. Bxc5 {[%clk 0:02:34]}  Bxc5 {[%clk 0:01:27]} 21. Rxc5 {[%clk 0:02:34]}  Qxa3 {[%clk 0:01:14]} 22. Qxa3 {[%clk 0:02:33]} 1-0


[Site "https://www.chess.com"]

[Event "Titled Tuesday Blitz April 26 Late 2022"]
[White "Donchenko, Alexander"]
[Black "Meduri, Aakaash"]
[WhiteFideId "24603295"]
[BlackFideId "2032252"]
[WhiteElo "2539"]
[BlackElo "2096"]
[Result "1-0"]
[Round "02"]
[TimeControl "180+1"]
[Date "2022.04.26"]
[WhiteClock "0:00:15"]
[BlackClock "0:00:06"]

1. d4 {[%clk 0:03:00]}  f5 {[%clk 0:02:59]} 2. g3 {[%clk 0:03:00]}  Nf6 {[%clk 0:03:00]} 3. Bg2 {[%clk 0:03:01]}  e6 {[%clk 0:03:00]} 4. c4 {[%clk 0:03:01]}  Be7 {[%clk 0:03:01]} 5. Nf3 {[%clk 0:03:00]}  O-O {[%clk 0:03:01]} 6. Nc3 {[%clk 0:03:01]}  d6 {[%clk 0:03:02]} 7. b4 {[%clk 0:03:00]}  a5 {[%clk 0:02:59]} 8. b5 {[%clk 0:03:01]}  Ne4 {[%clk 0:02:58]} 9. Qc2 {[%clk 0:02:59]}  Nxc3 {[%clk 0:02:57]} 10. Qxc3 {[%clk 0:03:00]}  Nd7 {[%clk 0:02:57]} 11. O-O {[%clk 0:02:56]}  Nf6 {[%clk 0:02:57]} 12. Qc2 {[%clk 0:02:54]}  Ne4 {[%clk 0:02:56]} 13. a4 {[%clk 0:02:51]}  Qe8 {[%clk 0:02:55]} 14. Ba3 {[%clk 0:02:49]}  g5 {[%clk 0:02:53]} 15. c5 {[%clk 0:02:48]}  Bd7 {[%clk 0:02:52]} 16. Nd2 {[%clk 0:02:47]}  d5 {[%clk 0:02:50]} 17. Nb3 {[%clk 0:02:41]}  c6 {[%clk 0:02:42]} 18. b6 {[%clk 0:02:39]}  Qg6 {[%clk 0:02:36]} 19. f3 {[%clk 0:02:38]}  Nf6 {[%clk 0:02:37]} 20. Bb2 {[%clk 0:02:37]}  h5 {[%clk 0:02:31]} 21. Bc3 {[%clk 0:02:36]}  h4 {[%clk 0:02:31]} 22. Nxa5 {[%clk 0:02:36]}  hxg3 {[%clk 0:02:30]} 23. hxg3 {[%clk 0:02:37]}  Nh5 {[%clk 0:02:30]} 24. Kf2 {[%clk 0:02:36]}  Kf7 {[%clk 0:02:21]} 25. Nxb7 {[%clk 0:02:33]}  Rh8 {[%clk 0:02:10]} 26. Rh1 {[%clk 0:02:26]}  Nxg3 {[%clk 0:02:10]} 27. Rxh8 {[%clk 0:02:26]}  Rxh8 {[%clk 0:02:09]} 28. Nd6+ {[%clk 0:02:01]}  Bxd6 {[%clk 0:02:08]} 29. cxd6 {[%clk 0:02:02]}  Qh5 {[%clk 0:02:04]} 30. Ke3 {[%clk 0:01:25]}  Qh2 {[%clk 0:01:57]} 31. Be1 {[%clk 0:01:24]}  Qxg2 {[%clk 0:01:56]} 32. Bxg3 {[%clk 0:01:24]}  Qxg3 {[%clk 0:01:55]} 33. a5 {[%clk 0:01:25]}  e5 {[%clk 0:01:36]} 34. Kd3 {[%clk 0:01:14]}  Qf4 {[%clk 0:01:31]} 35. e3 {[%clk 0:01:09]}  Qxf3 {[%clk 0:01:29]} 36. b7 {[%clk 0:00:47]}  c5 {[%clk 0:01:23]} 37. Qxc5 {[%clk 0:00:42]}  Qe4+ {[%clk 0:01:19]} 38. Kc3 {[%clk 0:00:43]}  Qxe3+ {[%clk 0:01:14]} 39. Kb4 {[%clk 0:00:43]}  Rh2 {[%clk 0:01:14]} 40. Qc3 {[%clk 0:00:31]}  Qxc3+ {[%clk 0:00:26]} 41. Kxc3 {[%clk 0:00:31]}  exd4+ {[%clk 0:00:26]} 42. Kb3 {[%clk 0:00:25]}  Rh8 {[%clk 0:00:23]} 43. a6 {[%clk 0:00:24]}  Bc6 {[%clk 0:00:22]} 44. Rc1 {[%clk 0:00:17]}  Bxb7 {[%clk 0:00:11]} 45. axb7 {[%clk 0:00:18]}  Rb8 {[%clk 0:00:11]} 46. Kb4 {[%clk 0:00:17]}  Rxb7+ {[%clk 0:00:10]} 47. Kc5 {[%clk 0:00:18]}  f4 {[%clk 0:00:06]} 48. Kc6 {[%clk 0:00:17]}  Ra7 {[%clk 0:00:05]} 49. Kb6 {[%clk 0:00:17]}  Rd7 {[%clk 0:00:05]} 50. Kc6 {[%clk 0:00:18]}  Rd8 {[%clk 0:00:06]} 51. Kc7 {[%clk 0:00:17]}  Rxd6 {[%clk 0:00:06]} 52. Kxd6 {[%clk 0:00:17]}  d3 {[%clk 0:00:07]} 53. Ke5 {[%clk 0:00:16]}  Kg6 {[%clk 0:00:04]} 54. Rd1 {[%clk 0:00:14]}  f3 {[%clk 0:00:04]} 55. Rxd3 {[%clk 0:00:14]}  g4 {[%clk 0:00:04]} 56. Kf4 {[%clk 0:00:14]}  Kh5 {[%clk 0:00:05]} 57. Kg3 {[%clk 0:00:14]}  Kg5 {[%clk 0:00:03]} 58. Rxd5+ {[%clk 0:00:14]}  Kf6 {[%clk 0:00:04]} 59. Kxg4 {[%clk 0:00:14]}  f2 {[%clk 0:00:05]} 60. Rf5+ {[%clk 0:00:15]}  Kg6 {[%clk 0:00:06]} 61. Rxf2 {[%clk 0:00:15]} 1-0


[Site "https://www.chess.com"]

[Event "Titled Tuesday Blitz April 26 Late 2022"]
[White "Drygalov, Andrey"]
[Black "Zor, Alber Kadir"]
[WhiteFideId "24171735"]
[BlackFideId "6353169"]
[WhiteElo "2540"]
[BlackElo "1966"]
[Result "1-0"]
[Round "02"]
[TimeControl "180+1"]
[Date "2022.04.26"]
[WhiteClock "0:01:30"]
[BlackClock "0:00:43"]

1. e4 {[%clk 0:02:56]}  c5 {[%clk 0:02:59]} 2. Nf3 {[%clk 0:02:57]}  d6 {[%clk 0:02:59]} 3. d4 {[%clk 0:02:56]}  cxd4 {[%clk 0:03:00]} 4. Nxd4 {[%clk 0:02:57]}  Nf6 {[%clk 0:03:00]} 5. Nc3 {[%clk 0:02:58]}  Nc6 {[%clk 0:03:01]} 6. Bg5 {[%clk 0:02:58]}  e6 {[%clk 0:03:00]} 7. Qd2 {[%clk 0:02:58]}  a6 {[%clk 0:03:01]} 8. O-O-O {[%clk 0:02:58]}  Bd7 {[%clk 0:03:01]} 9. f3 {[%clk 0:02:59]}  Be7 {[%clk 0:02:59]} 10. Kb1 {[%clk 0:02:57]}  Rc8 {[%clk 0:02:58]} 11. Nxc6 {[%clk 0:02:57]}  Bxc6 {[%clk 0:02:58]} 12. Ne2 {[%clk 0:02:57]}  b5 {[%clk 0:02:57]} 13. h4 {[%clk 0:02:52]}  Qb6 {[%clk 0:02:45]} 14. Nd4 {[%clk 0:02:51]}  Bb7 {[%clk 0:02:07]} 15. Be3 {[%clk 0:02:49]}  Qc7 {[%clk 0:02:02]} 16. h5 {[%clk 0:02:48]}  Nd7 {[%clk 0:02:01]} 17. h6 {[%clk 0:02:48]}  g6 {[%clk 0:02:00]} 18. g4 {[%clk 0:02:48]}  d5 {[%clk 0:01:56]} 19. exd5 {[%clk 0:02:32]}  Bxd5 {[%clk 0:01:56]} 20. Bg5 {[%clk 0:02:31]}  f6 {[%clk 0:01:48]} 21. Be3 {[%clk 0:02:27]}  Ne5 {[%clk 0:01:47]} 22. Be2 {[%clk 0:02:27]}  Kf7 {[%clk 0:01:45]} 23. g5 {[%clk 0:02:25]}  Nc4 {[%clk 0:01:45]} 24. Bxc4 {[%clk 0:02:23]}  Qxc4 {[%clk 0:01:42]} 25. b3 {[%clk 0:02:23]}  Qc3 {[%clk 0:01:34]} 26. gxf6 {[%clk 0:02:10]}  Bxf6 {[%clk 0:01:34]} 27. Rhf1 {[%clk 0:02:10]}  Qxd2 {[%clk 0:01:34]} 28. Rxd2 {[%clk 0:02:10]}  Rhd8 {[%clk 0:01:34]} 29. Ne2 {[%clk 0:01:57]}  Bb7 {[%clk 0:01:30]} 30. Nf4 {[%clk 0:01:54]}  Rxd2 {[%clk 0:01:30]} 31. Bxd2 {[%clk 0:01:55]}  Rd8 {[%clk 0:01:30]} 32. Nd3 {[%clk 0:01:55]}  Rd5 {[%clk 0:01:24]} 33. f4 {[%clk 0:01:49]}  Rh5 {[%clk 0:01:24]} 34. Ne5+ {[%clk 0:01:49]}  Ke8 {[%clk 0:01:21]} 35. Ng4 {[%clk 0:01:49]}  Be7 {[%clk 0:01:16]} 36. Re1 {[%clk 0:01:49]}  Bf3 {[%clk 0:01:08]} 37. Ne5 {[%clk 0:01:48]}  Rxh6 {[%clk 0:01:08]} 38. Nxf3 {[%clk 0:01:47]}  Rh3 {[%clk 0:01:07]} 39. Nd4 {[%clk 0:01:47]}  Rh2 {[%clk 0:01:07]} 40. Bc3 {[%clk 0:01:44]}  b4 {[%clk 0:00:56]} 41. Bb2 {[%clk 0:01:44]}  h5 {[%clk 0:00:55]} 42. Nxe6 {[%clk 0:01:40]}  Kd7 {[%clk 0:00:52]} 43. Ng5 {[%clk 0:01:33]}  h4 {[%clk 0:00:49]} 44. Nf3 {[%clk 0:01:33]}  Rh3 {[%clk 0:00:48]} 45. Ne5+ {[%clk 0:01:33]}  Kc8 {[%clk 0:00:49]} 46. Nxg6 {[%clk 0:01:34]}  Bc5 {[%clk 0:00:49]} 47. f5 {[%clk 0:01:31]}  Rg3 {[%clk 0:00:49]} 48. Nxh4 {[%clk 0:01:31]}  Bf2 {[%clk 0:00:46]} 49. Rf1 {[%clk 0:01:30]}  Bb6 {[%clk 0:00:43]} 50. f6 {[%clk 0:01:30]}  Rg7 {[%clk 0:00:43]} 51. fxg7 {[%clk 0:01:30]} 1-0


[Site "https://www.chess.com"]

[Event "Titled Tuesday Blitz April 26 Late 2022"]
[White "Federzoni, Enzo"]
[Black "Spata, German"]
[WhiteFideId "2173301"]
[BlackFideId "113026"]
[WhiteElo "1956"]
[BlackElo "2238"]
[Result "1-0"]
[Round "02"]
[TimeControl "180+1"]
[Date "2022.04.26"]
[WhiteClock "0:00:13"]
[BlackClock "0:00:05"]

1. d4 {[%clk 0:03:00]}  g6 {[%clk 0:02:55]} 2. Nc3 {[%clk 0:02:57]}  Bg7 {[%clk 0:02:53]} 3. e4 {[%clk 0:02:56]}  c5 {[%clk 0:02:53]} 4. dxc5 {[%clk 0:02:53]}  Qa5 {[%clk 0:02:52]} 5. Bd2 {[%clk 0:02:47]}  Qxc5 {[%clk 0:02:52]} 6. Nd5 {[%clk 0:02:46]}  Na6 {[%clk 0:02:31]} 7. Nf3 {[%clk 0:02:45]}  e6 {[%clk 0:02:27]} 8. Bc3 {[%clk 0:02:44]}  Bxc3+ {[%clk 0:02:25]} 9. Nxc3 {[%clk 0:02:45]}  Ne7 {[%clk 0:02:12]} 10. h4 {[%clk 0:02:41]}  O-O {[%clk 0:02:10]} 11. Be2 {[%clk 0:02:41]}  d5 {[%clk 0:02:09]} 12. exd5 {[%clk 0:02:37]}  Nxd5 {[%clk 0:02:08]} 13. Nxd5 {[%clk 0:02:36]}  exd5 {[%clk 0:02:08]} 14. h5 {[%clk 0:02:35]}  Bg4 {[%clk 0:01:59]} 15. hxg6 {[%clk 0:02:23]}  hxg6 {[%clk 0:01:56]} 16. Qd2 {[%clk 0:02:14]}  Rfe8 {[%clk 0:01:12]} 17. Qh6 {[%clk 0:02:12]}  Rxe2+ {[%clk 0:01:07]} 18. Kxe2 {[%clk 0:02:06]}  Qc4+ {[%clk 0:01:06]} 19. Kd2 {[%clk 0:01:49]}  Qb4+ {[%clk 0:00:31]} 20. Kc1 {[%clk 0:01:45]}  Bh5 {[%clk 0:00:31]} 21. Ng5 {[%clk 0:01:12]}  Qf4+ {[%clk 0:00:30]} 22. Kb1 {[%clk 0:01:11]}  Re8 {[%clk 0:00:22]} 23. Qh7+ {[%clk 0:01:08]}  Kf8 {[%clk 0:00:22]} 24. Qh8+ {[%clk 0:01:06]}  Ke7 {[%clk 0:00:22]} 25. Re1+ {[%clk 0:01:06]}  Kd6 {[%clk 0:00:19]} 26. Qxe8 {[%clk 0:00:59]}  Qxg5 {[%clk 0:00:19]} 27. Qxf7 {[%clk 0:00:50]}  Nc5 {[%clk 0:00:15]} 28. a3 {[%clk 0:00:40]}  Ne4 {[%clk 0:00:14]} 29. Qf8+ {[%clk 0:00:36]}  Kd7 {[%clk 0:00:13]} 30. Qf7+ {[%clk 0:00:35]}  Kd6 {[%clk 0:00:13]} 31. Ka2 {[%clk 0:00:33]}  Qd2 {[%clk 0:00:12]} 32. Rac1 {[%clk 0:00:31]}  Qd4 {[%clk 0:00:07]} 33. Qf8+ {[%clk 0:00:24]}  Kd7 {[%clk 0:00:07]} 34. Qf7+ {[%clk 0:00:24]}  Kd6 {[%clk 0:00:07]} 35. f3 {[%clk 0:00:16]}  Nd2 {[%clk 0:00:05]} 36. Re6+ {[%clk 0:00:14]}  Kc5 {[%clk 0:00:05]} 37. Qc7+ {[%clk 0:00:14]}  Kb5 {[%clk 0:00:06]} 38. Qxb7+ {[%clk 0:00:14]}  Ka5 {[%clk 0:00:05]} 39. Ra6# {[%clk 0:00:13]} 1-0


[Site "https://www.chess.com"]

[Event "Titled Tuesday Blitz April 26 Late 2022"]
[White "Fernandez Siles, Luis"]
[Black "Li, Ben"]
[WhiteFideId "2209420"]
[BlackFideId "2089980"]
[WhiteElo "2212"]
[BlackElo "2267"]
[Result "0-1"]
[Round "02"]
[TimeControl "180+1"]
[Date "2022.04.26"]
[WhiteClock "0:00:28"]
[BlackClock "0:00:48"]

1. d4 {[%clk 0:03:00]}  d5 {[%clk 0:02:59]} 2. c4 {[%clk 0:03:00]}  e6 {[%clk 0:02:59]} 3. Nc3 {[%clk 0:03:00]}  Bb4 {[%clk 0:02:59]} 4. Nf3 {[%clk 0:03:00]}  Nf6 {[%clk 0:02:57]} 5. Bg5 {[%clk 0:03:00]}  Nbd7 {[%clk 0:02:56]} 6. Qc2 {[%clk 0:02:52]}  c5 {[%clk 0:02:55]} 7. a3 {[%clk 0:02:49]}  Qa5 {[%clk 0:02:53]} 8. Bxf6 {[%clk 0:02:37]}  Nxf6 {[%clk 0:02:52]} 9. Rc1 {[%clk 0:02:22]}  Bxc3+ {[%clk 0:02:47]} 10. Qxc3 {[%clk 0:02:21]}  Qxc3+ {[%clk 0:02:18]} 11. Rxc3 {[%clk 0:02:19]}  cxd4 {[%clk 0:02:16]} 12. Nxd4 {[%clk 0:02:18]}  Bd7 {[%clk 0:02:13]} 13. e3 {[%clk 0:01:58]}  O-O {[%clk 0:02:05]} 14. Be2 {[%clk 0:01:40]}  Rac8 {[%clk 0:01:59]} 15. O-O {[%clk 0:01:37]}  dxc4 {[%clk 0:01:52]} 16. Bxc4 {[%clk 0:01:31]}  Rc7 {[%clk 0:01:51]} 17. Rfc1 {[%clk 0:01:26]}  Rfc8 {[%clk 0:01:51]} 18. Ne2 {[%clk 0:01:24]}  Ne4 {[%clk 0:01:43]} 19. R3c2 {[%clk 0:01:23]}  Bb5 {[%clk 0:01:42]} 20. b3 {[%clk 0:01:20]}  Nd6 {[%clk 0:01:37]} 21. Nd4 {[%clk 0:00:55]}  Bxc4 {[%clk 0:01:32]} 22. bxc4 {[%clk 0:00:51]}  Rxc4 {[%clk 0:01:33]} 23. Rxc4 {[%clk 0:00:48]}  Rxc4 {[%clk 0:01:34]} 24. Rxc4 {[%clk 0:00:48]}  Nxc4 {[%clk 0:01:35]} 25. a4 {[%clk 0:00:47]}  Kf8 {[%clk 0:01:26]} 26. Kf1 {[%clk 0:00:46]}  Ke7 {[%clk 0:01:27]} 27. Ke2 {[%clk 0:00:47]}  e5 {[%clk 0:01:25]} 28. Nb5 {[%clk 0:00:47]}  a6 {[%clk 0:01:24]} 29. Nc3 {[%clk 0:00:47]}  Ke6 {[%clk 0:01:21]} 30. Kd3 {[%clk 0:00:47]}  Nd6 {[%clk 0:01:20]} 31. e4 {[%clk 0:00:46]}  g6 {[%clk 0:01:16]} 32. Nd5 {[%clk 0:00:43]}  Nxe4 {[%clk 0:01:10]} 33. Nc7+ {[%clk 0:00:37]}  Kd7 {[%clk 0:01:10]} 34. Kxe4 {[%clk 0:00:38]}  Kxc7 {[%clk 0:01:10]} 35. Kxe5 {[%clk 0:00:38]}  b5 {[%clk 0:01:10]} 36. axb5 {[%clk 0:00:34]}  axb5 {[%clk 0:01:11]} 37. f4 {[%clk 0:00:32]}  Kc6 {[%clk 0:01:05]} 38. g4 {[%clk 0:00:32]}  Kc5 {[%clk 0:00:56]} 39. f5 {[%clk 0:00:26]}  b4 {[%clk 0:00:55]} 40. Kf6 {[%clk 0:00:26]}  b3 {[%clk 0:00:54]} 41. Kxf7 {[%clk 0:00:27]}  gxf5 {[%clk 0:00:48]} 42. gxf5 {[%clk 0:00:27]}  b2 {[%clk 0:00:48]} 43. f6 {[%clk 0:00:27]}  b1=Q {[%clk 0:00:48]} 44. Kg8 {[%clk 0:00:28]}  Qg6+ {[%clk 0:00:48]} 0-1


[Site "https://www.chess.com"]

[Event "Titled Tuesday Blitz April 26 Late 2022"]
[White "Ferreira, Vitor Hugo Vieira"]
[Black "Svane, Frederik"]
[WhiteFideId "2119765"]
[BlackFideId "12923044"]
[WhiteElo "2165"]
[BlackElo "2459"]
[Result "0-1"]
[Round "02"]
[TimeControl "180+1"]
[Date "2022.04.26"]
[WhiteClock "0:00:09"]
[BlackClock "0:00:14"]

1. d4 {[%clk 0:03:00]}  Nf6 {[%clk 0:03:00]} 2. c4 {[%clk 0:02:56]}  e6 {[%clk 0:03:00]} 3. Nf3 {[%clk 0:02:50]}  d5 {[%clk 0:03:00]} 4. Nc3 {[%clk 0:02:50]}  dxc4 {[%clk 0:03:01]} 5. e3 {[%clk 0:02:48]}  a6 {[%clk 0:03:01]} 6. Bxc4 {[%clk 0:02:48]}  b5 {[%clk 0:03:01]} 7. Bb3 {[%clk 0:02:48]}  Bb7 {[%clk 0:02:58]} 8. O-O {[%clk 0:02:48]}  c5 {[%clk 0:02:54]} 9. Qe2 {[%clk 0:02:48]}  cxd4 {[%clk 0:02:49]} 10. exd4 {[%clk 0:02:47]}  Be7 {[%clk 0:02:49]} 11. Rd1 {[%clk 0:02:38]}  O-O {[%clk 0:02:49]} 12. Bg5 {[%clk 0:02:38]}  h6 {[%clk 0:01:50]} 13. Bh4 {[%clk 0:02:34]}  Nbd7 {[%clk 0:01:34]} 14. Ne5 {[%clk 0:02:21]}  Nb6 {[%clk 0:01:30]} 15. Nxf7 {[%clk 0:01:50]}  Rxf7 {[%clk 0:01:29]} 16. Bxe6 {[%clk 0:01:39]}  Nbd5 {[%clk 0:00:56]} 17. Bg3 {[%clk 0:01:19]}  Nxc3 {[%clk 0:00:45]} 18. bxc3 {[%clk 0:01:19]}  Bd5 {[%clk 0:00:46]} 19. Bxf7+ {[%clk 0:01:19]}  Bxf7 {[%clk 0:00:47]} 20. a4 {[%clk 0:01:16]}  Bc4 {[%clk 0:00:46]} 21. Qf3 {[%clk 0:01:13]}  Bd5 {[%clk 0:00:45]} 22. Qe2 {[%clk 0:01:12]}  Bc4 {[%clk 0:00:33]} 23. Qf3 {[%clk 0:01:12]}  bxa4 {[%clk 0:00:33]} 24. d5 {[%clk 0:01:01]}  Bd6 {[%clk 0:00:31]} 25. Rd4 {[%clk 0:00:53]}  Bb3 {[%clk 0:00:32]} 26. c4 {[%clk 0:00:42]}  Rc8 {[%clk 0:00:22]} 27. Qf5 {[%clk 0:00:35]}  Bxg3 {[%clk 0:00:20]} 28. hxg3 {[%clk 0:00:34]}  Rxc4 {[%clk 0:00:17]} 29. Rxc4 {[%clk 0:00:31]}  Bxc4 {[%clk 0:00:18]} 30. Rxa4 {[%clk 0:00:31]}  Bb5 {[%clk 0:00:17]} 31. Rd4 {[%clk 0:00:30]}  Qd6 {[%clk 0:00:17]} 32. Qc8+ {[%clk 0:00:26]}  Kh7 {[%clk 0:00:16]} 33. Qf5+ {[%clk 0:00:26]}  Kg8 {[%clk 0:00:17]} 34. Qc8+ {[%clk 0:00:27]}  Kf7 {[%clk 0:00:16]} 35. g4 {[%clk 0:00:21]}  Bd7 {[%clk 0:00:16]} 36. Qc4 {[%clk 0:00:20]}  a5 {[%clk 0:00:14]} 37. g3 {[%clk 0:00:18]}  a4 {[%clk 0:00:14]} 38. Qc1 {[%clk 0:00:16]}  Nxg4 {[%clk 0:00:13]} 39. Rf4+ {[%clk 0:00:14]}  Nf6 {[%clk 0:00:13]} 40. Rf3 {[%clk 0:00:12]}  Qxd5 {[%clk 0:00:13]} 41. Ra3 {[%clk 0:00:09]}  Kg6 {[%clk 0:00:11]} 42. Qc2+ {[%clk 0:00:09]}  Qf5 {[%clk 0:00:12]} 43. Qxf5+ {[%clk 0:00:08]}  Kxf5 {[%clk 0:00:13]} 44. f3 {[%clk 0:00:08]}  Nd5 {[%clk 0:00:13]} 45. Kf2 {[%clk 0:00:08]}  Nb6 {[%clk 0:00:13]} 46. g4+ {[%clk 0:00:08]}  Ke6 {[%clk 0:00:13]} 47. Ke3 {[%clk 0:00:08]}  Nc4+ {[%clk 0:00:13]} 48. Kd4 {[%clk 0:00:08]}  Nxa3 {[%clk 0:00:14]} 49. Kc5 {[%clk 0:00:09]}  Nc2 {[%clk 0:00:14]} 0-1


[Site "https://www.chess.com"]